[Event "Charlotte Fall GM-A 2023"]
[Site "Charlotte"]
[Date "2023.11.17"]
[Round "1.1"]
[White "Mardov, Dimitar"]
[Black "Sandoval Mercado, Carlos"]
[Result "1/2-1/2"]
[ECO "A88"]
[WhiteElo "2455"]
[BlackElo "2397"]
[Annotator "RC"]
[PlyCount "122"]
[EventDate "2023.11.17"]
[EventType "tourn"]
[EventCountry "USA"]
[SourceTitle "playchess.com"]
[Source "ChessBase"]
[SourceQuality "1"]
[TimeControl "5400+30"]

1. d4 {[%emt 0:00:03]} f5 {[%emt 0:01:29]} 2. Nf3 {[%emt 0:03:04]} Nf6 {[%emt 0:00:05]} 3. g3 {[%emt 0:00:31]} g6 {[%emt 0:01:46]} 4. Bg2 {[%emt 0:01:16]} Bg7 {[%emt 0:00:06]} 5. O-O {[%emt 0:00:57]} O-O {[%emt 0:00:05]} 6. c4 {[%emt 0:02:39]} d6 {[%emt 0:00:18]} 7. Nc3 {[%emt 0:02:24]} c6 {[%emt 0:01:42]} 8. Qc2 {[%emt 0:07:42]} Na6 {[%emt 0:02:18]} 9. Bg5 {[%emt 0:06:40]} Be6 {[%emt 0:05:51]} 10. b3 {[%emt 0:06:13]} Nc7 {[%emt 0:01:07]} 11. Rfe1 {[%emt 0:07:20]} b5 {[%emt 0:16:47]} 12. Nd2 {[%emt 0:04:31]} d5 {[%emt 0:02:19]} 13. e3 {[%emt 0:08:26]} Ne4 {[%emt 0:12:14]} 14. Ndxe4 {[%emt 0:03:01]} fxe4 {[%emt 0:09:45]} 15. Bf4 {[%emt 0:03:12]} Rc8 {[%emt 0:05:41]} 16. Rac1 {[%emt 0:03:35]} Na6 {[%emt 0:01:11]} 17. Qd2 {[%emt 0:05:28]} b4 {[%emt 0:16:08]} 18. Ne2 {[%emt 0:12:07]} Qd7 {[%emt 0:11:01]} 19. cxd5 {[%emt 0:02:53]} cxd5 {[%emt 0:01:55]} 20. Rxc8 {[%emt 0:02:48]} Rxc8 {[%emt 0:01:26]} 21. Rc1 {[%emt 0:00:55]} Rf8 {[%emt 0:03:13]} 22. Be5 {[%emt 0:05:26]} g5 {[%emt 0:00:22]} 23. Bf1 {[%emt 0:03:15]} Bg4 {[%emt 0:00:55]} 24. Rc2 {[%emt 0:01:22]} h5 {[%emt 0:02:33]} 25. h4 {[%emt 0:02:42]} Qf5 {[%emt 0:01:18]} 26. Qe1 {[%emt 0:01:07]} Nb8 {[%emt 0:01:18]} 27. Bxg7 {[%emt 0:00:57]} Kxg7 {[%emt 0:00:01]} 28. hxg5 {[%emt 0:00:33]} Bxe2 {[%emt 0:00:56]} 29. Qxe2 {[%emt 0:01:33]} Qxg5 {[%emt 0:00:01]} 30. Bg2 {[%emt 0:00:52]} h4 {[%emt 0:00:18]} 31. gxh4 {[%emt 0:00:31]} Qxh4 {[%emt 0:00:15]} 32. Qb5 {[%emt 0:00:32]} Qh5 {[%emt 0:00:01]} 33. Rc7 {[%emt 0:00:58]} a6 {[%emt 0:00:55]} 34. Qf1 {[%emt 0:01:11]} Kf6 {[%emt 0:00:20]} 35. f3 {[%emt 0:00:33]} Ke6 {[%emt 0:01:06]} 36. f4 {[%emt 0:00:34]} Rh8 {[%emt 0:00:23]} 37. f5+ {[%emt 0:00:28]} Kf6 {[%emt 0:00:48]} 38. Qf4 {[%emt 0:00:26]} Qxf5 {[%emt 0:00:39]} 39. Qxf5+ {[%emt 0:00:12]} Kxf5 {[%emt 0:00:01]} 40. Rxe7 {[%emt 0:00:09]} Nc6 {[%emt 0:01:01]} 41. Rc7 {[%emt 0:00:25]} Rh6 {[%emt 0:00:01]} 42. Kf2 {[%emt 0:00:25]} Rd6 {[%emt 0:01:16]} 43. Bh3+ {[%emt 0:00:42]} Kf6 {[%emt 0:00:01]} 44. Rb7 {[%emt 0:00:37]} Ne7 {[%emt 0:00:49]} 45. Rxb4 {[%emt 0:00:47]} Rc6 {[%emt 0:00:01]} 46. Bf1 {[%emt 0:00:54]} Rc2+ {[%emt 0:00:28]} 47. Be2 {[%emt 0:00:08]} Rxa2 {[%emt 0:00:06]} 48. Rb6+ {[%emt 0:00:12]} Kf7 {[%emt 0:00:52]} 49. Rxa6 {[%emt 0:00:07]} Rb2 {[%emt 0:00:05]} 50. Rb6 {[%emt 0:00:40]} Nf5 {[%emt 0:02:13]} 51. Rb7+ {[%emt 0:00:36]} Ke6 {[%emt 0:00:00]} 52. b4 {[%emt 0:00:48]} Ng3 {[%emt 0:00:00]} 53. Kxg3 {[%emt 0:00:19]} Rxe2 {[%emt 0:00:00]} 54. Kf4 {[%emt 0:01:05]} Rf2+ {[%emt 0:00:00]} 55. Kg4 {[%emt 0:00:19]} Rg2+ {[%emt 0:00:00]} 56. Kf4 {[%emt 0:00:10]} Rf2+ {[%emt 0:00:00]} 57. Kg4 {[%emt 0:00:06]} Rf3 {[%emt 0:00:12]} 58. Rb6+ {[%emt 0:00:11]} Kd7 {[%emt 0:00:01]} 59. Rb5 {[%emt 0:00:34]} Kd6 {[%emt 0:00:46]} 60. Rb6+ {[%emt 0:00:04]} Kc7 {[%emt 0:00:03]} 61. Rb5 {[%emt 0:00:07]} Kd6 {[%emt 0:01:04]} 1/2-1/2

[Event "Charlotte Fall GM-A 2023"]
[Site "Charlotte"]
[Date "2023.11.17"]
[Round "1.3"]
[White "Cruz, Cristhian"]
[Black "Gauri, Shankar"]
[Result "1-0"]
[ECO "D12"]
[WhiteElo "2498"]
[BlackElo "2351"]
[Annotator "RC"]
[PlyCount "91"]
[EventDate "2023.11.17"]
[EventType "tourn"]
[EventCountry "USA"]
[SourceTitle "playchess.com"]
[Source "ChessBase"]
[SourceQuality "1"]
[TimeControl "5400+30"]

1. d4 {[%emt 0:01:56]} d5 {[%emt 0:00:35]} 2. c4 {[%emt 0:00:21]} c6 {[%emt 0:00:07]} 3. Nf3 {[%emt 0:01:29]} Nf6 {[%emt 1:31:18]} 4. e3 {[%emt 1:28:44]} Bf5 {[%emt 0:00:00]} 5. Bd3 {[%emt 0:00:00]} Bxd3 {[%emt 0:00:00]} 6. Qxd3 {[%emt 0:00:00]} e6 {[%emt 0:00:00]} 7. Nbd2 {[%emt 0:00:00]} Nbd7 {[%emt 0:00:00]} 8. b3 {[%emt 0:00:00]} Bd6 {[%emt 0:00:00]} 9. Bb2 {[%emt 0:00:00]} O-O {[%emt 0:00:00]} 10. O-O {[%emt 0:00:00]} Qe7 {[%emt 0:00:00]} 11. Rad1 {[%emt 0:00:00]} a5 {[%emt 0:00:00]} 12. a4 {[%emt 0:00:00]} Rad8 {[%emt 0:00:00]} 13. e4 {[%emt 0:00:00]} dxe4 {[%emt 0:00:00]} 14. Nxe4 {[%emt 0:00:00]} Bb4 {[%emt 0:00:00]} 15. Ng3 {[%emt 0:00:00]} Rfe8 {[%emt 0:00:00]} 16. Qc2 {[%emt 0:00:00]} c5 {[%emt 0:00:00]} 17. d5 {[%emt 0:00:00]} exd5 {[%emt 0:00:00]} 18. cxd5 {[%emt 0:00:00]} Qd6 {[%emt 0:00:20]} 19. Qf5 {[%emt 0:00:00]} h6 {[%emt 0:03:07]} 20. Qb1 {[%emt 0:00:00]} Qf4 {[%emt 0:00:43]} 21. Bc1 {[%emt 0:00:00]} Qg4 {[%emt 0:00:33]} 22. Bb2 {[%emt 0:00:00]} Ne4 {[%emt 0:04:47]} 23. h3 {[%emt 0:00:00]} Qg6 {[%emt 0:00:00]} 24. Nxe4 {[%emt 0:00:55]} Qxe4 {[%emt 0:00:00]} 25. Qa1 {[%emt 0:02:19]} f6 {[%emt 0:00:00]} 26. Bc3 {[%emt 0:05:20]} Bxc3 {[%emt 0:00:00]} 27. Qxc3 {[%emt 0:00:03]} Qb4 {[%emt 0:00:00]} 28. Qc2 {[%emt 0:01:07]} Nb6 {[%emt 0:00:00]} 29. Rfe1 {[%emt 0:00:11]} c4 {[%emt 0:01:48]} 30. Rxe8+ {[%emt 0:01:14]} Rxe8 {[%emt 0:00:01]} 31. bxc4 {[%emt 0:00:40]} Qxc4 {[%emt 0:00:16]} 32. Qb1 {[%emt 0:00:32]} Nxa4 {[%emt 0:00:49]} 33. Qg6 {[%emt 0:01:18]} Qe4 {[%emt 0:01:03]} 34. Qh5 {[%emt 0:00:40]} Rd8 {[%emt 0:01:27]} 35. Rd4 {[%emt 0:00:31]} Qb1+ {[%emt 0:00:13]} 36. Kh2 {[%emt 0:00:01]} Nc5 {[%emt 0:00:45]} 37. Nh4 {[%emt 0:00:37]} Qb6 {[%emt 0:00:29]} 38. Nf5 {[%emt 0:00:21]} Qc7+ {[%emt 0:00:29]} 39. d6 {[%emt 0:00:30]} Qf7 {[%emt 0:00:30]} 40. Ne7+ {[%emt 0:00:13]} Kf8 {[%emt 0:00:39]} 41. Qxc5 {[%emt 0:00:07]} Qe6 {[%emt 0:00:18]} 42. f4 {[%emt 0:01:22]} Kf7 {[%emt 0:00:00]} 43. Nf5 {[%emt 0:00:40]} Rc8 {[%emt 0:00:37]} 44. Qxc8 {[%emt 0:00:38]} Qxc8 {[%emt 0:00:02]} 45. d7 {[%emt 0:00:05]} Qd8 {[%emt 0:00:33]} 46. Nd6+ {[%emt 0:00:04]} 1-0

[Event "Charlotte Fall GM-A 2023"]
[Site "Charlotte"]
[Date "2023.11.17"]
[Round "1.4"]
[White "Siddharth, Jagadeesh"]
[Black "Chen, Ryo"]
[Result "1-0"]
[ECO "A45"]
[WhiteElo "2438"]
[BlackElo "2367"]
[Annotator "RC"]
[PlyCount "59"]
[EventDate "2023.11.17"]
[EventType "tourn"]
[EventCountry "USA"]
[SourceTitle "playchess.com"]
[Source "ChessBase"]
[SourceQuality "1"]
[TimeControl "5400+30"]

1. d4 {[%emt 0:01:05]} Nf6 {[%emt 0:02:57]} 2. Bf4 {[%emt 0:00:14]} g6 {[%emt 0:00:46]} 3. Nc3 {[%emt 0:00:10]} d5 {[%emt 0:00:32]} 4. e3 {[%emt 0:00:10]} Bg7 {[%emt 0:00:10]} 5. Nb5 {[%emt 0:00:27]} Na6 {[%emt 0:00:12]} 6. Nc3 {[%emt 0:00:06]} Nb8 {[%emt 1:28:53]} 7. h4 {[%emt 0:00:22]} c6 {[%emt 0:00:00]} 8. Be2 {[%emt 0:01:07]} h5 {[%emt 0:00:00]} 9. Nf3 {[%emt 0:00:08]} O-O {[%emt 0:00:00]} 10. Ne5 {[%emt 0:07:19]} Nbd7 {[%emt 0:00:00]} 11. f3 {[%emt 0:00:30]} Qb6 {[%emt 0:00:00]} 12. Rb1 {[%emt 0:25:10]} Nxe5 {[%emt 0:00:00]} 13. Bxe5 {[%emt 0:00:37]} Nd7 {[%emt 0:00:00]} 14. Bxg7 {[%emt 0:10:37]} Kxg7 {[%emt 0:00:00]} 15. g4 {[%emt 0:02:54]} hxg4 {[%emt 0:00:00]} 16. fxg4 {[%emt 0:02:19]} Qc7 {[%emt 0:00:00]} 17. g5 {[%emt 0:05:57]} e5 {[%emt 0:00:00]} 18. h5 {[%emt 0:06:33]} Qd8 {[%emt 0:00:00]} 19. Rg1 {[%emt 0:06:40]} gxh5 {[%emt 0:00:00]} 20. Bxh5 {[%emt 0:09:20]} Qe7 {[%emt 0:00:00]} 21. Kf2 {[%emt 0:02:47]} Rh8 {[%emt 0:03:54]} 22. Rh1 {[%emt 0:03:41]} Nf8 {[%emt 0:01:32]} 23. Qf3 {[%emt 0:03:00]} exd4 {[%emt 0:02:15]} 24. exd4 {[%emt 0:00:03]} Ne6 {[%emt 0:00:28]} 25. Rbe1 {[%emt 0:01:24]} Bd7 {[%emt 0:00:26]} 26. Re5 {[%emt 0:06:05]} Rag8 {[%emt 0:00:25]} 27. Ne2 {[%emt 0:02:03]} Kf8 {[%emt 0:00:25]} 28. Bxf7 {[%emt 0:02:24]} Rxh1 {[%emt 0:00:57]} 29. Bxe6+ {[%emt 0:00:30]} Kg7 {[%emt 0:01:08]} 30. Bxg8 {[%emt 0:00:15]} 1-0

[Event "Charlotte Fall GM-A 2023"]
[Site "Charlotte"]
[Date "2023.11.17"]
[Round "1.5"]
[White "Woodward, Andy"]
[Black "Aarav Dengla"]
[Result "1-0"]
[ECO "E73"]
[WhiteElo "2473"]
[BlackElo "2391"]
[Annotator "RC"]
[PlyCount "45"]
[EventDate "2023.11.17"]
[EventType "tourn"]
[EventCountry "USA"]
[SourceTitle "playchess.com"]
[Source "ChessBase"]
[SourceQuality "1"]
[TimeControl "5400+30"]

1. d4 {[%emt 0:00:04]} Nf6 {[%emt 0:00:06]} 2. c4 {[%emt 0:00:47]} g6 {[%emt 0:00:06]} 3. Nc3 {[%emt 0:00:26]} Bg7 {[%emt 0:00:08]} 4. e4 {[%emt 0:00:15]} d6 {[%emt 0:00:05]} 5. Be2 {[%emt 0:00:41]} O-O {[%emt 0:00:09]} 6. Be3 {[%emt 0:00:06]} Nc6 {[%emt 0:00:07]} 7. d5 {[%emt 0:00:29]} Ne5 {[%emt 0:00:05]} 8. f4 {[%emt 0:00:10]} Neg4 {[%emt 0:00:06]} 9. Bd2 {[%emt 0:00:08]} Nh6 {[%emt 0:00:15]} 10. Nf3 {[%emt 0:00:44]} c6 {[%emt 0:00:06]} 11. a4 {[%emt 0:02:03]} e6 {[%emt 0:09:35]} 12. dxc6 {[%emt 0:40:46]} bxc6 {[%emt 0:30:35]} 13. e5 {[%emt 0:01:22]} dxe5 {[%emt 0:11:31]} 14. Nxe5 {[%emt 0:01:45]} Nf5 {[%emt 0:17:51]} 15. Bf3 {[%emt 0:03:42]} Nd4 {[%emt 0:05:35]} 16. Be3 {[%emt 0:02:32]} Nxf3+ {[%emt 0:02:14]} 17. Qxf3 {[%emt 0:00:08]} Qc7 {[%emt 0:03:23]} 18. Nb5 {[%emt 0:05:22]} Qb7 {[%emt 0:06:26]} 19. Nxc6 {[%emt 0:01:41]} a6 {[%emt 0:02:13]} 20. Nd6 {[%emt 0:00:07]} Qc7 {[%emt 0:02:08]} 21. Rd1 {[%emt 0:02:01]} Bd7 {[%emt 0:01:06]} 22. Ne7+ {[%emt 0:00:08]} Kh8 {[%emt 0:00:05]} 23. Qxa8 {[%emt 0:00:05]} 1-0

[Event "Charlotte Fall GM-A 2023"]
[Site "Charlotte"]
[Date "2023.11.18"]
[Round "2.1"]
[White "Sandoval Mercado, Carlos"]
[Black "Aarav Dengla"]
[Result "1-0"]
[ECO "D31"]
[WhiteElo "2397"]
[BlackElo "2391"]
[Annotator "RC"]
[PlyCount "149"]
[EventDate "2023.11.17"]
[EventType "tourn"]
[EventCountry "USA"]
[SourceTitle "playchess.com"]
[Source "ChessBase"]
[SourceQuality "1"]
[TimeControl "5400+30"]

1. d4 {[%emt 0:00:02]} d5 {[%emt 0:03:02]} 2. c4 {[%emt 0:00:04]} e6 {[%emt 0:00:10]} 3. Nc3 {[%emt 0:01:34]} a6 {[%emt 0:00:15]} 4. cxd5 {[%emt 0:00:21]} exd5 {[%emt 0:00:11]} 5. Bf4 {[%emt 0:01:44]} Nf6 {[%emt 0:00:51]} 6. e3 {[%emt 0:00:16]} c5 {[%emt 0:01:49]} 7. Nge2 {[%emt 0:01:11]} c4 {[%emt 0:06:37]} 8. Be5 {[%emt 0:09:40]} Bb4 {[%emt 0:16:36]} 9. g3 {[%emt 0:01:05]} Be6 {[%emt 0:05:32]} 10. Bxf6 {[%emt 0:05:33]} Qxf6 {[%emt 0:02:59]} 11. Bg2 {[%emt 0:00:04]} Nc6 {[%emt 0:04:27]} 12. O-O {[%emt 0:04:38]} Rd8 {[%emt 0:04:18]} 13. Nf4 {[%emt 0:03:01]} Bxc3 {[%emt 0:05:06]} 14. bxc3 {[%emt 0:00:07]} g5 {[%emt 0:04:41]} 15. Nxe6 {[%emt 0:00:39]} fxe6 {[%emt 0:04:23]} 16. f4 {[%emt 0:03:43]} O-O {[%emt 0:20:23]} 17. Qg4 {[%emt 0:01:49]} Qf5 {[%emt 0:03:10]} 18. Qxg5+ {[%emt 0:01:16]} Qxg5 {[%emt 0:04:20]} 19. fxg5 {[%emt 0:00:03]} Na7 {[%emt 0:01:39]} 20. a4 {[%emt 0:07:24]} Rxf1+ {[%emt 0:02:13]} 21. Kxf1 {[%emt 0:01:57]} Nc8 {[%emt 0:02:07]} 22. e4 {[%emt 0:04:46]} dxe4 {[%emt 0:01:15]} 23. Bxe4 {[%emt 0:00:06]} Nd6 {[%emt 0:05:56]} 24. Bf3 {[%emt 0:00:42]} Rf8 {[%emt 0:00:00]} 25. Ke2 {[%emt 0:03:45]} Kg7 {[%emt 0:00:00]} 26. h4 {[%emt 0:09:24]} Rf7 {[%emt 0:00:00]} 27. Ke3 {[%emt 0:05:26]} Nf5+ {[%emt 0:01:10]} 28. Kf2 {[%emt 0:00:02]} b5 {[%emt 0:00:29]} 29. axb5 {[%emt 0:11:06]} axb5 {[%emt 0:00:01]} 30. Rb1 {[%emt 0:00:07]} Nd6 {[%emt 0:00:57]} 31. Re1 {[%emt 0:00:05]} Nf5 {[%emt 0:00:43]} 32. Rxe6 {[%emt 0:09:27]} b4 {[%emt 0:00:03]} 33. cxb4 {[%emt 0:01:16]} Nxd4 {[%emt 0:00:31]} 34. Re3 {[%emt 0:01:40]} Rc7 {[%emt 0:00:43]} 35. Rc3 {[%emt 0:00:43]} Nb5 {[%emt 0:00:33]} 36. Rc1 {[%emt 0:00:01]} c3 {[%emt 0:00:23]} 37. Ke3 {[%emt 0:01:12]} c2 {[%emt 0:00:44]} 38. Be4 {[%emt 0:02:00]} Re7 {[%emt 0:00:34]} 39. Kd3 {[%emt 0:01:44]} Rd7+ {[%emt 0:00:26]} 40. Kxc2 {[%emt 0:00:57]} Rd4 {[%emt 0:00:10]} 41. Bd3 {[%emt 0:01:08]} Rxb4 {[%emt 0:00:37]} 42. Ra1 {[%emt 0:00:26]} Nd6 {[%emt 0:00:41]} 43. Ra7+ {[%emt 0:00:08]} Rb7 {[%emt 0:00:06]} 44. Ra6 {[%emt 0:01:28]} Rc7+ {[%emt 0:00:45]} 45. Kd2 {[%emt 0:00:13]} Rd7 {[%emt 0:00:38]} 46. Ke2 {[%emt 0:00:18]} Re7+ {[%emt 0:00:26]} 47. Kf3 {[%emt 0:00:03]} Nf7 {[%emt 0:00:09]} 48. Bf5 {[%emt 0:01:01]} Rc7 {[%emt 0:01:01]} 49. Kg2 {[%emt 0:00:20]} Rc5 {[%emt 0:00:34]} 50. Be4 {[%emt 0:02:13]} Rc4 {[%emt 0:00:28]} 51. Bxh7 {[%emt 0:00:29]} Nxg5 {[%emt 0:00:03]} 52. Rg6+ {[%emt 0:00:10]} Kxh7 {[%emt 0:00:06]} 53. Rxg5 {[%emt 0:00:03]} Kh6 {[%emt 0:00:31]} 54. Re5 {[%emt 0:00:06]} Kg6 {[%emt 0:00:14]} 55. Kf3 {[%emt 0:00:03]} Kf6 {[%emt 0:00:58]} 56. Re4 {[%emt 0:00:06]} Rc1 {[%emt 0:00:29]} 57. Kg4 {[%emt 0:00:03]} Rc2 {[%emt 0:00:32]} 58. Rf4+ {[%emt 0:00:03]} Kg7 {[%emt 0:00:08]} 59. Kg5 {[%emt 0:00:05]} Rc3 {[%emt 0:00:46]} 60. g4 {[%emt 0:00:05]} Rc5+ {[%emt 0:00:26]} 61. Rf5 {[%emt 0:00:03]} Rc6 {[%emt 0:00:11]} 62. h5 {[%emt 0:00:02]} Rb6 {[%emt 0:00:37]} 63. h6+ {[%emt 0:00:44]} Kh7 {[%emt 0:00:20]} 64. Rf7+ {[%emt 0:00:03]} Kg8 {[%emt 0:00:09]} 65. Rc7 {[%emt 0:00:08]} Rb5+ {[%emt 0:00:13]} 66. Kg6 {[%emt 0:00:05]} Rb6+ {[%emt 0:00:58]} 67. Kh5 {[%emt 0:00:03]} Kh8 {[%emt 0:00:51]} 68. g5 {[%emt 0:00:02]} Rb5 {[%emt 0:00:08]} 69. Re7 {[%emt 0:00:08]} Ra5 {[%emt 0:01:16]} 70. Kg6 {[%emt 0:00:07]} Ra8 {[%emt 0:00:48]} 71. Kf6 {[%emt 0:00:33]} Kg8 {[%emt 0:00:47]} 72. g6 {[%emt 0:01:49]} Kh8 {[%emt 0:00:25]} 73. Rd7 {[%emt 0:00:42]} Ra6+ {[%emt 0:00:32]} 74. Kf7 {[%emt 0:00:18]} Rd6 {[%emt 0:00:25]} 75. g7+ {[%emt 0:00:04]} 1-0

[Event "Charlotte Fall GM-A 2023"]
[Site "Charlotte"]
[Date "2023.11.18"]
[Round "2.2"]
[White "Chen, Ryo"]
[Black "Woodward, Andy"]
[Result "0-1"]
[ECO "B70"]
[WhiteElo "2367"]
[BlackElo "2473"]
[Annotator "RC"]
[PlyCount "154"]
[EventDate "2023.11.17"]
[EventType "tourn"]
[EventCountry "USA"]
[SourceTitle "playchess.com"]
[Source "ChessBase"]
[SourceQuality "1"]
[TimeControl "5400+30"]

1. e4 {[%emt 0:03:39]} c5 {[%emt 0:00:17]} 2. Nf3 {[%emt 0:00:39]} d6 {[%emt 0:00:11]} 3. d4 {[%emt 0:00:10]} cxd4 {[%emt 0:00:08]} 4. Nxd4 {[%emt 0:00:07]} Nf6 {[%emt 0:00:08]} 5. Nc3 {[%emt 0:00:06]} Nc6 {[%emt 0:00:26]} 6. Be2 {[%emt 0:02:30]} g6 {[%emt 0:00:20]} 7. O-O {[%emt 0:02:17]} Bg7 {[%emt 0:00:11]} 8. Nb3 {[%emt 0:01:08]} O-O {[%emt 0:00:11]} 9. Bg5 {[%emt 0:00:59]} Be6 {[%emt 0:00:17]} 10. Kh1 {[%emt 0:00:31]} a5 {[%emt 0:00:15]} 11. a4 {[%emt 0:00:29]} h6 {[%emt 0:00:09]} 12. Bh4 {[%emt 0:01:04]} Nxe4 {[%emt 0:00:11]} 13. Nxe4 {[%emt 0:01:22]} f5 {[%emt 0:00:07]} 14. Nc3 {[%emt 0:02:38]} g5 {[%emt 0:00:10]} 15. Bg3 {[%emt 0:05:23]} f4 {[%emt 0:00:08]} 16. Bxf4 gxf4 {[%emt 0:17:19]} 17. Bf3 {[%emt 0:29:01]} Bf7 {[%emt 0:07:31]} 18. Nd5 {[%emt 0:25:07]} Bxb2 {[%emt 0:31:49]} 19. Rb1 {[%emt 0:04:56]} Be5 {[%emt 0:00:29]} 20. Nd2 {[%emt 0:06:20]} Rb8 {[%emt 0:04:42]} 21. g3 {[%emt 0:05:37]} fxg3 {[%emt 0:01:36]} 22. fxg3 {[%emt 0:00:31]} e6 {[%emt 0:00:22]} 23. Ne3 {[%emt 0:01:10]} d5 {[%emt 0:01:53]} 24. c4 {[%emt 0:01:39]} Nd4 {[%emt 0:06:50]} 25. cxd5 {[%emt 0:01:36]} exd5 {[%emt 0:00:50]} 26. Bg2 {[%emt 0:01:26]} Kh8 {[%emt 0:18:56]} 27. Nxd5 {[%emt 0:01:50]} Bg7 {[%emt 0:01:17]} 28. Nf4 {[%emt 0:00:34]} b5 {[%emt 0:00:06]} 29. axb5 {[%emt 0:00:49]} Nxb5 {[%emt 0:00:15]} 30. Qa4 {[%emt 0:00:47]} Nc3 {[%emt 0:00:23]} 31. Rxb8 {[%emt 0:00:31]} Nxa4 {[%emt 0:00:05]} 32. Rxd8 {[%emt 0:00:07]} Rxd8 {[%emt 0:00:03]} 33. Ne4 {[%emt 0:00:51]} Nb2 {[%emt 0:03:58]} 34. Nc5 {[%emt 0:00:52]} a4 {[%emt 0:00:18]} 35. Nfe6 {[%emt 0:00:23]} Bxe6 {[%emt 0:05:18]} 36. Nxe6 {[%emt 0:00:01]} Rd6 {[%emt 0:00:32]} 37. Nf4 {[%emt 0:00:49]} a3 {[%emt 0:00:27]} 38. Bd5 {[%emt 0:00:44]} Be5 {[%emt 0:00:48]} 39. Ba2 {[%emt 0:01:17]} Bxf4 {[%emt 0:00:32]} 40. Rxf4 {[%emt 0:00:00]} Rd1+ {[%emt 0:00:10]} 41. Kg2 {[%emt 0:00:00]} Nd3 {[%emt 0:00:16]} 42. Rf8+ {[%emt 0:00:36]} Kg7 {[%emt 0:00:01]} 43. Rg8+ {[%emt 0:00:46]} Kh7 {[%emt 0:00:02]} 44. Kf3 {[%emt 0:00:28]} Nb4 {[%emt 0:01:37]} 45. Ra8 {[%emt 0:00:21]} Nxa2 {[%emt 0:00:18]} 46. Rxa3 {[%emt 0:00:05]} Nb4 {[%emt 0:00:05]} 47. Ra4 {[%emt 0:00:54]} Nc6 {[%emt 0:00:22]} 48. Re4 {[%emt 0:00:29]} Rd3+ {[%emt 0:00:23]} 49. Ke2 {[%emt 0:00:48]} Rb3 {[%emt 0:00:15]} 50. Rc4 {[%emt 0:00:24]} Rb2+ {[%emt 0:00:20]} 51. Ke3 {[%emt 0:00:08]} Ne5 {[%emt 0:00:24]} 52. Re4 {[%emt 0:00:20]} Rb3+ {[%emt 0:01:11]} 53. Kf4 {[%emt 0:00:14]} Nd3+ {[%emt 0:00:10]} 54. Kf5 {[%emt 0:00:11]} Rb7 {[%emt 0:00:08]} 55. Rd4 {[%emt 0:00:43]} Rf7+ {[%emt 0:00:10]} 56. Ke4 {[%emt 0:00:28]} Ne1 {[%emt 0:00:19]} 57. Rd5 {[%emt 0:00:53]} Nf3 {[%emt 0:00:53]} 58. h4 {[%emt 0:00:37]} Nh2 {[%emt 0:00:02]} 59. Rf5 {[%emt 0:01:00]} Ra7 {[%emt 0:00:55]} 60. Rc5 {[%emt 0:00:32]} Rg7 {[%emt 0:00:49]} 61. Kf4 {[%emt 0:00:29]} Rg4+ {[%emt 0:00:09]} 62. Kf5 {[%emt 0:00:08]} Rxg3 {[%emt 0:00:06]} 63. Rc2 {[%emt 0:00:18]} Nf1 {[%emt 0:00:12]} 64. Rf2 {[%emt 0:00:43]} Rg8 {[%emt 0:00:04]} 65. Ra2 {[%emt 0:00:33]} Ng3+ {[%emt 0:00:18]} 66. Kf4 {[%emt 0:00:07]} Nh5+ {[%emt 0:00:04]} 67. Kf5 {[%emt 0:00:09]} Rg1 {[%emt 0:00:17]} 68. Ra5 {[%emt 0:00:32]} Ng7+ {[%emt 0:00:06]} 69. Kf4 {[%emt 0:00:06]} Kg6 {[%emt 0:00:29]} 70. Rb5 {[%emt 0:01:02]} Nh5+ {[%emt 0:00:07]} 71. Kf3 {[%emt 0:00:06]} Rg3+ {[%emt 0:00:05]} 72. Ke4 {[%emt 0:00:09]} Rg4+ {[%emt 0:00:04]} 73. Ke5 {[%emt 0:00:14]} Nf6 {[%emt 0:00:15]} 74. Rb6 {[%emt 0:00:36]} Re4+ {[%emt 0:00:12]} 75. Kd6 {[%emt 0:00:08]} Rxh4 {[%emt 0:00:05]} 76. Ke5 {[%emt 0:00:17]} Re4+ {[%emt 0:00:05]} 77. Kd6 {[%emt 0:00:05]} h5 {[%emt 0:00:06]} 0-1

[Event "Charlotte Fall GM-A 2023"]
[Site "Charlotte"]
[Date "2023.11.18"]
[Round "2.3"]
[White "Gauri, Shankar"]
[Black "Siddharth, Jagadeesh"]
[Result "1/2-1/2"]
[ECO "B07"]
[WhiteElo "2351"]
[BlackElo "2438"]
[Annotator "RC"]
[PlyCount "59"]
[EventDate "2023.11.17"]
[EventType "tourn"]
[EventCountry "USA"]
[SourceTitle "playchess.com"]
[Source "ChessBase"]
[SourceQuality "1"]
[TimeControl "5400+30"]

1. Nf3 {[%emt 0:03:49]} Nf6 {[%emt 0:02:13]} 2. g3 {[%emt 0:01:04]} g6 {[%emt 0:01:13]} 3. Bg2 {[%emt 0:06:37]} Bg7 {[%emt 0:00:10]} 4. O-O {[%emt 0:00:29]} O-O {[%emt 0:00:10]} 5. d4 {[%emt 0:00:08]} d6 {[%emt 0:00:07]} 6. Re1 {[%emt 0:06:50]} Nbd7 {[%emt 0:00:25]} 7. e4 {[%emt 0:02:33]} e5 {[%emt 0:00:08]} 8. Nc3 {[%emt 0:00:28]} Re8 {[%emt 0:00:19]} 9. Be3 {[%emt 0:08:35]} c6 {[%emt 0:07:11]} 10. h3 {[%emt 0:01:08]} b5 {[%emt 0:04:42]} 11. a3 {[%emt 0:06:51]} Qc7 {[%emt 0:03:58]} 12. Qd2 {[%emt 0:07:07]} a5 {[%emt 0:01:59]} 13. dxe5 {[%emt 0:17:12]} dxe5 {[%emt 0:00:45]} 14. Red1 {[%emt 0:06:19]} Rb8 {[%emt 0:06:21]} 15. Nh4 {[%emt 0:01:51]} Nb6 {[%emt 0:09:13]} 16. b3 {[%emt 0:01:20]} Be6 {[%emt 0:01:40]} 17. Bh6 {[%emt 0:03:27]} Qe7 {[%emt 0:06:45]} 18. Bxg7 {[%emt 0:03:02]} Kxg7 {[%emt 0:00:28]} 19. Qd6 {[%emt 0:05:15]} Qxd6 {[%emt 0:01:28]} 20. Rxd6 {[%emt 0:00:01]} Rec8 {[%emt 0:00:22]} 21. f4 {[%emt 0:01:23]} Ne8 {[%emt 0:13:03]} 22. Rd2 {[%emt 0:01:02]} Rd8 {[%emt 0:13:18]} 23. Rad1 {[%emt 0:03:20]} Rxd2 {[%emt 0:01:52]} 24. Rxd2 {[%emt 0:00:02]} exf4 {[%emt 0:00:30]} 25. gxf4 {[%emt 0:00:02]} f6 {[%emt 0:00:24]} 26. Nf3 {[%emt 0:00:45]} b4 {[%emt 0:03:01]} 27. axb4 {[%emt 0:01:11]} axb4 {[%emt 0:00:01]} 28. Nd1 {[%emt 0:03:25]} c5 {[%emt 0:06:44]} 29. Ne3 {[%emt 0:00:07]} c4 {[%emt 0:03:59]} 30. bxc4 {[%emt 0:03:33]} 1/2-1/2